fUSD/lending_fUSD_20240426
["ID","MTS","AMOUNT","RATE_DAILY","PERIOD"]
[323591701,1714099861032,-211.75,0.0001178,2]
[323591703,1714099861041,-560.71,0.0001178,2]
[323591705,1714099861051,-500.0,0.0001178,2]
[323591707,1714099861061,-500.0,0.0001178,2]
[323591709,1714099861070,-500.0,0.0001178,2]
[323591711,1714099861081,-300.4846597,0.0001178,2]
[323591713,1714099861091,-500.0,0.0001178,2]
[323591715,1714099861100,-500.0,0.0001178,2]
[323591717,1714099861110,-500.0,0.0001178,2]
[323591719,1714099861119,-500.0,0.0001178,2]
[323591721,1714099861128,-500.0,0.0001178,2]
[323591723,1714099861137,-500.0,0.0001178,2]
[323591725,1714099861146,-500.0,0.0001178,2]
[323591727,1714099861155,-500.0,0.0001178,2]
[323591729,1714099861164,-759.84,0.0001178,2]
[323591731,1714099861173,-500.0,0.0001178,2]
[323591733,1714099861183,-500.0,0.0001178,2]
[323591735,1714099861192,-500.0,0.0001178,2]
[323591737,1714099861201,-500.0,0.0001178,2]
[323591739,1714099861210,-500.0,0.0001178,2]
[323591741,1714099861219,-500.0,0.0001178,2]
[323591743,1714099861228,-500.0,0.0001178,2]
[323591745,1714099861237,-500.0,0.0001178,2]
[323591747,1714099861246,-500.0,0.0001178,2]
[323591748,1714099861255,-500.0,0.0001178,2]
[323591749,1714099861263,-500.0,0.0001178,2]
[323591750,1714099861273,-575.38,0.0001178,2]
[323591751,1714099861282,-500.0,0.0001178,2]
[323591752,1714099861291,-500.0,0.0001178,2]
[323591753,1714099861300,-500.0,0.0001178,2]
[323591754,1714099861309,-629.25,0.0001178,2]
[323591755,1714099861318,-527.63,0.0001178,2]
[323591756,1714099861328,-441.60151933,0.0001178,2]
[323591757,1714099861337,-500.0,0.0001178,2]
[323591759,1714099861347,-500.0,0.0001178,2]
[323591761,1714099861356,-165.03390443,0.0001178,2]
[323591763,1714099861366,-500.0,0.0001178,2]
[323591765,1714099861375,-709.23,0.0001178,2]
[323591767,1714099861384,-500.0,0.0001178,2]
[323591769,1714099861394,-500.0,0.0001178,2]
[323591771,1714099861403,-500.0,0.0001178,2]
[323591773,1714099861417,-500.0,0.0001178,2]
[323591775,1714099861426,-71.77123509,0.0001178,2]
[323591801,1714099861663,-428.22876491,0.0001178,2]
[323591803,1714099861673,-500.0,0.0001178,2]
[323591805,1714099861682,-500.0,0.0001178,2]
[323591807,1714099861691,-500.0,0.0001178,2]
[323591809,1714099861702,-500.0,0.0001178,2]
[323591811,1714099861712,-500.0,0.0001178,2]
[323591813,1714099861722,-500.0,0.0001178,2]
[323591815,1714099861732,-500.0,0.0001178,2]
[323591818,1714099861742,-500.0,0.0001178,2]
[323591819,1714099861752,-500.0,0.0001178,2]
[323591822,1714099861761,-595.25,0.0001178,2]
[323591824,1714099861771,-500.0,0.0001178,2]
[323591825,1714099861780,-500.0,0.0001178,2]
[323591827,1714099861790,-500.0,0.0001178,2]
[323591829,1714099861799,-500.0,0.0001178,2]
[323591831,1714099861809,-500.0,0.0001178,2]
[323591834,1714099861819,-500.0,0.0001178,2]
[323591836,1714099861831,-500.0,0.0001178,2]
[323591838,1714099861842,-500.0,0.0001178,2]
[323591840,1714099861851,-749.02,0.0001178,2]
[323591842,1714099861860,-500.0,0.0001178,2]
[323591844,1714099861870,-500.0,0.0001178,2]
[323591846,1714099861879,-500.0,0.0001178,2]
[323591848,1714099861889,-500.0,0.0001178,2]
[323591850,1714099861898,-503.97,0.0001178,2]
[323591852,1714099861908,-500.0,0.0001178,2]
[323591854,1714099861917,-578.61,0.0001178,2]
[323591856,1714099861926,-500.0,0.0001178,2]
[323591858,1714099861936,-645.49,0.0001178,2]
[323591860,1714099861945,-500.0,0.0001178,2]
[323591862,1714099861954,-500.0,0.0001178,2]
[323591864,1714099861963,-500.0,0.0001178,2]
[323591866,1714099861973,-500.0,0.0001178,2]
[323591868,1714099861982,-500.0,0.0001178,2]
[323591870,1714099861991,-1007.8,0.0001178,2]
[323591872,1714099862001,-338.83,0.0001178,2]
[323591874,1714099862010,-500.0,0.0001178,2]
[323591876,1714099862019,-500.0,0.0001178,2]
[323591878,1714099862028,-304.67096797,0.0001178,2]
[323591880,1714099862038,-500.0,0.0001178,2]
[323591882,1714099862049,-500.0,0.0001178,2]
[323591884,1714099862059,-500.0,0.0001178,2]
[323591886,1714099862069,-500.0,0.0001178,2]
[323591888,1714099862079,-500.0,0.0001178,2]
[323591890,1714099862088,-500.0,0.0001178,2]
[323591892,1714099862097,-500.0,0.0001178,2]
[323591894,1714099862107,-660.2,0.0001178,2]
[323591896,1714099862117,-500.0,0.0001178,2]
[323591898,1714099862127,-549.53,0.0001178,2]
[323591900,1714099862137,-500.0,0.0001178,2]
[323591902,1714099862147,-854.59,0.0001178,2]
[323591904,1714099862157,-500.0,0.0001178,2]
[323591906,1714099862167,-500.0,0.0001178,2]
[323591908,1714099862177,-500.0,0.0001178,2]
[323591910,1714099862187,-309.18682117,0.0001178,2]
[323591912,1714099862197,-833.62,0.0001178,2]
[323591914,1714099862206,-500.0,0.0001178,2]
[323591916,1714099862216,-763.01,0.0001178,2]
[323591918,1714099862225,-555.13,0.0001178,2]
[323591920,1714099862235,-500.0,0.0001178,2]
[323591922,1714099862244,-171.11606515,0.0001178,2]
[323591924,1714099862253,-500.0,0.0001178,2]
[323591926,1714099862263,-500.0,0.0001178,2]
[323591928,1714099862272,-789.67,0.0001178,2]
[323591930,1714099862281,-557.18,0.0001178,2]
[323591932,1714099862290,-500.0,0.0001178,2]
[323591934,1714099862300,-500.0,0.0001178,2]
[323591936,1714099862309,-500.0,0.0001178,2]
[323591938,1714099862318,-500.0,0.0001178,2]
[323591940,1714099862328,-625.27,0.0001178,2]
[323591942,1714099862338,-500.0,0.0001178,2]
[323591944,1714099862347,-810.55,0.0001178,2]
[323591946,1714099862357,-500.0,0.0001178,2]
[323591948,1714099862367,-500.0,0.0001178,2]
[323591950,1714099862377,-531.31,0.0001178,2]
[323591952,1714099862386,-500.0,0.0001178,2]
[323591954,1714099862395,-500.0,0.0001178,2]
[323591956,1714099862404,-500.0,0.0001178,2]
[323591958,1714099862420,-500.0,0.0001178,2]
[323591960,1714099862429,-500.0,0.0001178,2]
[323591962,1714099862440,-374.52127131,0.0001178,2]
[323591964,1714099862450,-500.0,0.0001178,2]
[323591966,1714099862461,-500.0,0.0001178,2]
[323591968,1714099862472,-500.0,0.0001178,2]
[323591970,1714099862484,-500.0,0.0001178,2]
[323591973,1714099862494,-500.0,0.0001178,2]
[323591975,1714099862506,-500.0,0.0001178,2]
[323591977,1714099862516,-500.0,0.0001178,2]
[323591979,1714099862526,-595.64578693,0.0001178,2]
[323591980,1714099862536,-500.0,0.0001178,2]
[323591982,1714099862545,-512.54346343,0.0001178,2]
[323591985,1714099862555,-500.0,0.0001178,2]
[323591987,1714099862565,-500.0,0.0001178,2]
[323591989,1714099862576,-877.65,0.0001178,2]
[323591991,1714099862587,-500.0,0.0001178,2]
[323591993,1714099862597,-574.93735446,0.0001178,2]
[323591995,1714099862607,-500.0,0.0001178,2]
[323591996,1714099862617,-500.0,0.0001178,2]
[323591999,1714099862627,-500.0,0.0001178,2]
[323592001,1714099862636,-500.0,0.0001178,2]
[323592003,1714099862646,-500.0,0.0001178,2]
[323592005,1714099862656,-704.32,0.0001178,2]
[323592007,1714099862665,-500.0,0.0001178,2]
[323592009,1714099862676,-13782.64,0.0001178,2]
[323592011,1714099862686,-500.0,0.0001178,2]
[323592013,1714099862697,-570.59,0.0001178,2]
[323592015,1714099862708,-500.0,0.0001178,2]
[323592017,1714099862718,-500.0,0.0001178,2]
[323592019,1714099862729,-500.0,0.0001178,2]
[323592021,1714099862740,-495.04995963,0.0001178,2]
[323592023,1714099862750,-199.17466621,0.0001178,2]
[323592025,1714099862760,-638.66558546,0.0001178,2]
[323592027,1714099862770,-990.34,0.0001178,2]
[323592029,1714099862783,-500.0,0.0001178,2]
[323592031,1714099862794,-500.0,0.0001178,2]
[323592033,1714099862804,-518.08752675,0.0001178,2]
[323592034,1714099862813,-500.0,0.0001178,2]
[323592036,1714099862823,-531.62,0.0001178,2]
[323592039,1714099862834,-797.89,0.0001178,2]
[323592041,1714099862843,-500.0,0.0001178,2]
[323592043,1714099862855,-500.0,0.0001178,2]
[323592045,1714099862864,-500.0,0.0001178,2]
[323592047,1714099862873,-500.0,0.0001178,2]
[323592049,1714099862884,-500.0,0.0001178,2]
[323592051,1714099862894,-792.52,0.0001178,2]
[323592053,1714099862903,-500.0,0.0001178,2]
[323592055,1714099862914,-500.0,0.0001178,2]
[323592057,1714099862923,-264.08417413,0.0001178,2]
[323592059,1714099862933,-500.0,0.0001178,2]
[323592061,1714099862943,-500.0,0.0001178,2]
[323592063,1714099862953,-500.0,0.0001178,2]
[323592065,1714099862963,-713.68,0.0001178,2]
[323592067,1714099862972,-500.0,0.0001178,2]
[323592069,1714099862983,-500.0,0.0001178,2]
[323592071,1714099862993,-4326.92,0.0001178,2]
[323592073,1714099863003,-500.0,0.0001178,2]
[323592075,1714099863013,-500.0,0.0001178,2]
[323592077,1714099863023,-500.0,0.0001178,2]
[323592079,1714099863033,-500.0,0.0001178,2]
[323592081,1714099863043,-819.73,0.0001178,2]
[323592083,1714099863054,-500.0,0.0001178,2]
[323592085,1714099863064,-500.0,0.0001178,2]
[323592087,1714099863073,-500.0,0.0001178,2]
[323592089,1714099863085,-500.0,0.0001178,2]
[323592091,1714099863096,-1184.97,0.0001178,2]
[323592093,1714099863106,-500.0,0.0001178,2]
[323592095,1714099863117,-500.0,0.0001178,2]
[323592097,1714099863128,-500.0,0.0001178,2]
[323592100,1714099863140,-1008.35,0.0001178,2]
[323592102,1714099863151,-670.47,0.0001178,2]
[323592104,1714099863162,-500.0,0.0001178,2]
[323592106,1714099863173,-590.31,0.0001178,2]
[323592107,1714099863186,-500.0,0.0001178,2]
[323592110,1714099863196,-1493.54,0.0001178,2]
[323592112,1714099863206,-500.0,0.0001178,2]
[323592114,1714099863218,-500.0,0.0001178,2]
[323592116,1714099863228,-500.0,0.0001178,2]
[323592117,1714099863238,-1078.64,0.0001178,2]
[323592120,1714099863248,-910.8,0.0001178,2]
[323592122,1714099863258,-500.0,0.0001178,2]
[323592124,1714099863269,-500.0,0.0001178,2]
[323592126,1714099863279,-840.23,0.0001178,2]
[323592128,1714099863288,-500.0,0.0001178,2]
[323592129,1714099863299,-500.0,0.0001178,2]
[323592131,1714099863311,-342.95880143,0.0001178,2]
[323592134,1714099863322,-500.0,0.0001178,2]
[323592135,1714099863332,-500.0,0.0001178,2]
[323592138,1714099863343,-1154.79,0.0001178,2]
[323592140,1714099863356,-740.7,0.0001178,2]
[323592142,1714099863366,-364.93239987,0.0001178,2]
[323592144,1714099863376,-500.0,0.0001178,2]
[323592146,1714099863386,-1489.27,0.0001178,2]
[323592148,1714099863396,-500.0,0.0001178,2]
[323592150,1714099863406,-729.03,0.0001178,2]
[323592152,1714099863419,-500.0,0.0001178,2]
[323592154,1714099863428,-1253.42,0.0001178,2]
[323592155,1714099863437,-500.0,0.0001178,2]
[323592156,1714099863447,-500.0,0.0001178,2]
[323592157,1714099863457,-510.86,0.0001178,2]
[323592158,1714099863466,-500.0,0.0001178,2]
[323592159,1714099863475,-500.0,0.0001178,2]
[323592160,1714099863484,-500.0,0.0001178,2]
[323592161,1714099863494,-1027.35,0.0001178,2]
[323592162,1714099863504,-2782.5,0.0001178,2]
[323592163,1714099863513,-500.0,0.0001178,2]
[323592164,1714099863522,-500.0,0.0001178,2]
[323592166,1714099863532,-508.1575224,0.0001178,2]
[323592168,1714099863540,-10479.31,0.0001178,2]
[323592170,1714099863550,-1955.94,0.0001178,2]
[323592172,1714099863559,-1119.24,0.0001178,2]
[323592174,1714099863569,-500.0,0.0001178,2]
[323592177,1714099863579,-500.0,0.0001178,2]
[323592179,1714099863589,-598.89,0.0001178,2]
[323592181,1714099863598,-500.0,0.0001178,2]
[323592182,1714099863609,-767.18,0.0001178,2]
[323592184,1714099863620,-971.45,0.0001178,2]
[323592187,1714099863629,-500.0,0.0001178,2]
[323592189,1714099863639,-500.0,0.0001178,2]
[323592191,1714099863648,-500.0,0.0001178,2]
[323592193,1714099863657,-619.3,0.0001178,2]
[323592195,1714099863666,-710.38,0.0001178,2]
[323592197,1714099863675,-500.0,0.0001178,2]
[323592199,1714099863685,-500.0,0.0001178,2]
[323592200,1714099863694,-500.0,0.0001178,2]
[323592202,1714099863705,-500.0,0.0001178,2]
[323592204,1714099863714,-500.0,0.0001178,2]
[323592206,1714099863724,-500.0,0.0001178,2]
[323592208,1714099863735,-539.49,0.0001178,2]
[323592211,1714099863745,-500.0,0.0001178,2]
[323592213,1714099863754,-500.0,0.0001178,2]
[323592215,1714099863763,-500.0,0.0001178,2]
[323592217,1714099863772,-500.0,0.0001178,2]
[323592219,1714099863781,-500.0,0.0001178,2]
[323592221,1714099863791,-500.0,0.0001178,2]
[323592223,1714099863800,-1031.65,0.0001178,2]
[323592225,1714099863810,-500.0,0.0001178,2]
[323592227,1714099863819,-3775.7,0.0001178,2]
[323592229,1714099863828,-500.0,0.0001178,2]
[323592231,1714099863837,-500.0,0.0001178,2]
[323592233,1714099863846,-500.0,0.0001178,2]
[323592235,1714099863856,-500.0,0.0001178,2]
[323592237,1714099863865,-500.0,0.0001178,2]
[323592239,1714099863874,-702.49,0.0001178,2]
[323592240,1714099863884,-504.36995886,0.0001178,2]
[323592242,1714099863894,-500.0,0.0001178,2]
[323592244,1714099863903,-500.0,0.0001178,2]
[323592246,1714099863913,-500.0,0.0001178,2]
[323592248,1714099863922,-500.0,0.0001178,2]
[323592251,1714099863931,-548.99359484,0.0001178,2]
[323592253,1714099863941,-500.0,0.0001178,2]
[323592255,1714099863950,-533.97,0.0001178,2]
[323592257,1714099863959,-500.0,0.0001178,2]
[323592259,1714099863969,-500.0,0.0001178,2]
[323592260,1714099863979,-150.0,0.0001178,2]
[323592263,1714099863988,-508.79450452,0.0001178,2]
[323592265,1714099863997,-556.24,0.0001178,2]
[323592267,1714099864007,-1391.33,0.0001178,2]
[323592269,1714099864016,-871.6,0.0001178,2]
[323592271,1714099864025,-627.06,0.0001178,2]
[323592273,1714099864034,-1354.26,0.0001178,2]
[323592281,1714099864101,-500.0,0.0001178,2]
[323592283,1714099864110,-500.0,0.0001178,2]
[323592285,1714099864119,-500.0,0.0001178,2]
[323592287,1714099864129,-500.0,0.0001178,2]
[323592289,1714099864138,-500.0,0.0001178,2]
[323592291,1714099864147,-607.48,0.0001178,2]
[323592293,1714099864156,-500.0,0.0001178,2]
[323592295,1714099864165,-500.0,0.0001178,2]
[323592297,1714099864174,-500.0,0.0001178,2]
[323592299,1714099864183,-500.0,0.0001178,2]
[323592301,1714099864193,-546.67,0.0001178,2]
[323592303,1714099864203,-500.0,0.0001178,2]
[323592305,1714099864212,-1291.15,0.0001178,2]
[323592307,1714099864221,-1192.27,0.0001178,2]
[323592309,1714099864230,-151.15720632,0.0001178,2]
[323592311,1714099864239,-500.0,0.0001178,2]
[323592313,1714099864248,-566.47701428,0.0001178,2]
[323592315,1714099864257,-500.0,0.0001178,2]
[323592317,1714099864266,-500.0,0.0001178,2]
[323592319,1714099864275,-500.0,0.0001178,2]
[323592321,1714099864285,-614.36,0.0001178,2]
[323592323,1714099864294,-500.0,0.0001178,2]
[323592325,1714099864304,-500.0,0.0001178,2]
[323592327,1714099864313,-500.0,0.0001178,2]
[323592329,1714099864322,-500.0,0.0001178,2]
[323592331,1714099864333,-500.0,0.0001178,2]
[323592333,1714099864343,-851.07,0.0001178,2]
[323592335,1714099864353,-500.0,0.0001178,2]
[323592337,1714099864363,-500.0,0.0001178,2]
[323592339,1714099864372,-3689.16,0.0001178,2]
[323592341,1714099864381,-500.0,0.0001178,2]
[323592343,1714099864390,-523.76,0.0001178,2]
[323592345,1714099864399,-2886.58,0.0001178,2]
[323592347,1714099864408,-500.0,0.0001178,2]
[323592349,1714099864422,-500.0,0.0001178,2]
[323592351,1714099864432,-500.0,0.0001178,2]
[323592353,1714099864441,-500.0,0.0001178,2]
[323592355,1714099864450,-810.66,0.0001178,2]
[323592357,1714099864460,-1427.24,0.0001178,2]
[323592359,1714099864469,-509.30826681,0.0001178,2]
[323592361,1714099864479,-500.0,0.0001178,2]
[323592363,1714099864488,-500.0,0.0001178,2]
[323592365,1714099864498,-500.0,0.0001178,2]
[323592367,1714099864507,-5355.8,0.0001178,2]
[323592369,1714099864517,-500.0,0.0001178,2]
[323592371,1714099864526,-500.0,0.0001178,2]
[323592373,1714099864535,-2934.42,0.0001178,2]
[323592375,1714099864544,-500.0,0.0001178,2]
[323592377,1714099864553,-500.0,0.0001178,2]
[323592379,1714099864562,-561.06,0.0001178,2]
[323592381,1714099864571,-500.0,0.0001178,2]
[323592383,1714099864581,-500.0,0.0001178,2]
[323592385,1714099864590,-500.0,0.0001178,2]
[323592387,1714099864599,-500.0,0.0001178,2]
[323592389,1714099864608,-3906.26,0.0001178,2]
[323592391,1714099864617,-500.0,0.0001178,2]
[323592393,1714099864626,-500.0,0.0001178,2]
[323592395,1714099864635,-942.63,0.0001178,2]
[323592397,1714099864644,-883.44,0.0001178,2]
[323592399,1714099864653,-500.0,0.0001178,2]
[323592401,1714099864662,-500.0,0.0001178,2]
[323592402,1714099864671,-500.0,0.0001178,2]
[323592404,1714099864679,-500.0,0.0001178,2]
[323592406,1714099864689,-1001.99,0.0001178,2]
[323592408,1714099864698,-500.0,0.0001178,2]
[323592410,1714099864707,-1409.08,0.0001178,2]
[323592412,1714099864716,-500.0,0.0001178,2]
[323592414,1714099864725,-500.0,0.0001178,2]
[323592416,1714099864735,-500.0,0.0001178,2]
[323592419,1714099864744,-500.0,0.0001178,2]
[323592421,1714099864754,-1201.76,0.0001178,2]
[323592423,1714099864763,-500.0,0.0001178,2]
[323592425,1714099864772,-566.12,0.0001178,2]
[323592427,1714099864782,-500.0,0.0001178,2]
[323592429,1714099864791,-579.96529845,0.0001178,2]
[323592431,1714099864800,-508.9626224,0.0001178,2]
[323592433,1714099864812,-550.32,0.0001178,2]
[323592435,1714099864822,-500.0,0.0001178,2]
[323592437,1714099864831,-500.0,0.0001178,2]
[323592439,1714099864841,-500.0,0.0001178,2]
[323592441,1714099864850,-5397.88,0.0001178,2]
[323592443,1714099864858,-744.48,0.0001178,2]
[323592445,1714099864867,-500.0,0.0001178,2]
[323592447,1714099864876,-2362.23,0.0001178,2]
[323592449,1714099864885,-500.0,0.0001178,2]
[323592451,1714099864894,-614.68,0.0001178,2]
[323592453,1714099864903,-500.0,0.0001178,2]
[323592455,1714099864912,-689.84,0.0001178,2]
[323592457,1714099864921,-500.0,0.0001178,2]
[323592459,1714099864931,-2544.91,0.0001178,2]
[323592461,1714099864940,-852.38,0.0001178,2]
[323592463,1714099864949,-500.0,0.0001178,2]
[323592465,1714099864958,-1558.98,0.0001178,2]
[323592467,1714099864967,-585.64,0.0001178,2]
[323592469,1714099864976,-1437.91,0.0001178,2]
[323592471,1714099864984,-500.0,0.0001178,2]
[323592473,1714099864993,-3502.25,0.0001178,2]
[323592475,1714099865002,-500.0,0.0001178,2]
[323592477,1714099865011,-761.7,0.0001178,2]
[323592479,1714099865020,-1067.79,0.0001178,2]
[323592481,1714099865030,-500.0,0.0001178,2]
[323592483,1714099865039,-500.0,0.0001178,2]
[323592485,1714099865048,-1218.06,0.0001178,2]
[323592487,1714099865057,-531.33,0.0001178,2]
[323592489,1714099865066,-7411.09,0.0001178,2]
[323592491,1714099865076,-500.0,0.0001178,2]
[323592492,1714099865087,-628.25,0.0001178,2]
[323592494,1714099865097,-500.0,0.0001178,2]
[323592497,1714099865106,-749.11,0.0001178,2]
[323592498,1714099865116,-15565.4278281,0.00011843,2]
[323592500,1714099865126,-44356.180987,0.00011851,2]
[323592502,1714099865135,-150.0,0.00011859,2]
[323592504,1714099865145,-294.1,0.0001187,2]
[323592507,1714099865154,-1965.6276794,0.0001188,2]
[323592508,1714099865163,-462.0,0.00011888,2]
[323592510,1714099865172,-970.0,0.00011888,2]
[323592513,1714099865182,-1394.0,0.00011888,2]
[323592514,1714099865191,-2297.0,0.00011888,2]
[323592517,1714099865201,-542.0,0.00011888,2]
[323592518,1714099865209,-485.939,0.00011888,2]
[323592521,1714099865219,-1228.0,0.00011888,2]
[323592522,1714099865229,-1864.872,0.00011888,2]
[323592525,1714099865238,-258.137,0.00011888,2]
[323592527,1714099865248,-612.456,0.00011888,2]
[323592529,1714099865258,-438.785,0.00011888,2]
[323592531,1714099865267,-420.0,0.00011888,2]
[323592533,1714099865276,-1477.848,0.00011888,2]
[323592535,1714099865285,-1494.815,0.00011888,2]
[323592537,1714099865295,-1641.0,0.00011888,2]
[323592539,1714099865304,-444.015,0.00011888,2]
[323592541,1714099865313,-214.0,0.00011888,2]
[323592543,1714099865322,-1141.994,0.00011888,2]
[323592544,1714099865332,-601.119,0.00011888,2]
[323592546,1714099865342,-150.086,0.00011888,2]
[323592547,1714099865351,-56347.88588505,0.000119,2]
[323592548,1714099865361,-50941.80127125,0.000119,2]
[323592549,1714099865371,-1684.0,0.000119,2]
[323592550,1714099865381,-352.0,0.000119,2]
[323592551,1714099865390,-165.76896418,0.000119,2]
[323592552,1714099865400,-1000.0,0.000119,2]
[323592553,1714099865411,-10000.0,0.00011907,2]
[323592554,1714099865424,-150.0,0.0001192,2]
[323592556,1714099865434,-294.1,0.0001199,2]
[323592558,1714099865444,-29290.87597082,0.00011999,2]
[323592600,1714099865848,-431.53907932,0.00011999,2]
[323592602,1714099865859,-766.60142235,0.00011999,2]
[323592609,1714099865914,-500.0,0.00010958,2]
[323592611,1714099865924,-12111.90000023,0.00011999,2]
[323592613,1714099865935,-531.79482725,0.00011999,2]
[323592668,1714099866448,-500.0,0.00010958,2]
[323592670,1714099866459,-500.0,0.00010958,2]
[323592672,1714099866469,-500.0,0.00011232,2]
[323592674,1714099866478,-324.17942276,0.00011506,2]
[323592676,1714099866487,-500.0,0.0001178,2]
[323592678,1714099866498,-616.78446673,0.00011999,2]
[323592683,1714099866539,-500.0,0.00011232,2]
[323592685,1714099866550,-474.90789925,0.00011999,2]
[323592687,1714099866563,-131.77732105,0.00011999,2]
[323592689,1714099866573,-420.79229313,0.00012,2]
[323592749,1714099867302,-432.16,0.00010958,2]
[323592753,1714099867362,-67.84,0.00010958,2]
[323592754,1714099867372,-500.0,0.00010958,2]
[323592755,1714099867388,-500.0,0.00010958,2]
[323592756,1714099867401,-368.25809021,0.00011232,2]
[323592757,1714099867433,-500.0,0.00011506,2]
[323592758,1714099867449,-500.0,0.0001178,2]
[323592760,1714099867460,-2408.90190978,0.00012,2]
[323592762,1714099867473,-240.90771232,0.00012,2]
[323592764,1714099867482,-2710.61328884,0.00012,2]
[323592789,1714099867737,-500.0,0.00010958,2]
[323592792,1714099867750,-8702.97029183,0.00012,2]
[323592794,1714099867760,-409.24902946,0.00012,2]
[323592796,1714099867769,-796.1133489,0.00012,2]
[323592798,1714099867779,-353.48677435,0.00012,2]
[323592851,1714099868279,-500.0,0.00010958,2]
[323592853,1714099868289,-466.75003935,0.00011232,2]
[323592858,1714099868325,-33.24996065,0.00011232,2]
[323592860,1714099868336,-299.42,0.00011232,2]
[323592862,1714099868345,-500.0,0.00011506,2]
[323592864,1714099868354,-500.0,0.0001178,2]
[323592866,1714099868363,-442.93189694,0.00012,2]
[323592868,1714099868380,-861.80000004,0.00012,2]
[323595042,1714100215517,89.49813374,8.53e-05,2]
[323595043,1714100287425,-299.95014393,8.529e-05,2]
[323595044,1714100288015,-204.47,8.529e-05,2]
[323595045,1714100288691,-262.78597779,8.529e-05,2]
[323595046,1714100289202,-200.04985607,8.529e-05,2]
[323595047,1714100289678,-180.35851305,8.529e-05,2]
[323595048,1714100290164,-722.83628261,8.529e-05,2]
[323595049,1714100293855,164.83973906,0.0002375,60]
[323595050,1714100402729,-287.70186626,8.53e-05,2]
[323595051,1714100693544,150.0,8.523e-05,2]
[323595052,1714100693566,150.0,8.523e-05,2]
[323595053,1714100693588,69.52,8.523e-05,2]
[323595059,1714101032731,-1870.45077345,9.999e-05,2]
[323595060,1714101032741,-4695.9858856,0.0001,2]
[323595076,1714101038212,-9455.50000002,0.0001,2]
[323595077,1714101038372,-918.17888308,0.0001,2]
[323595078,1714101038382,-461.18,0.00010403,2]
[323595079,1714101038392,-982.84,0.00010413,2]
[323595080,1714101038402,-859.77,0.00010471,2]
[323595081,1714101038412,-163.68,0.00010609,2]
[323595082,1714101038422,-369.52,0.00010787,2]
[323595083,1714101038432,-204.36851064,0.00010858,2]
[323595084,1714101038442,-5259.9581,0.00010858,2]
[323595085,1714101038452,-11754.6178,0.00010858,2]
[323595086,1714101038462,-301.0273,0.00010858,2]
[323595087,1714101038472,-333.3134,0.00010858,2]
[323595088,1714101038482,-499.54552763,0.00010958,2]
[323595089,1714101038493,-500.0,0.00010958,2]
[323595090,1714101038504,-502.75370828,0.00010958,2]
[323595091,1714101038514,-593.04996067,0.00010958,2]
[323595092,1714101038524,-530.71797153,0.00010958,2]
[323595093,1714101038534,-501.68006454,0.00010958,2]
[323595094,1714101038548,-548.90687976,0.00010958,2]
[323595095,1714101038558,-499.2221417,0.00010958,2]
[323595096,1714101038570,-500.0,0.00010958,2]